{"text_format":"1","workbook":"xlsx","n_sheets":2,"sheets":["Fiche_Client","Statistique"],"not_rendered":{"charts":0,"images":0,"macros":1,"external_links":0,"defined_names":4,"comments":0,"pivot_tables":0},"unopened":[],"bounds":{"document_bytes":16777216,"sheet_cells":100000,"rows_first":2000,"rows_last":500,"rows_between":2000,"halvings":0,"cell_chars":16384,"cell_head_chars":4096},"cells_cut":0,"cells_raw":0,"read":"whole","date_system":"1900"}

{"sheet":"Fiche_Client","index":0,"n_rows":22,"n_cols":14,"rows_kept":22,"cut":false,"hidden":false,"merged":[]}
[]
[null,"C_Id","Titre","Nat","Chb","Nom","Prénom","Naissance","Adresse","Pays","CNI","Colonne1","Date Arrivée","Date Départ"]
[null,{"$f":"IF(E3<>\"\",ROW()-2,\"\")","v":1},"M","MA",205,"BELBACHIR","SAMIR","1982-04-09","OUJDA","MAROC","F510044",null,"2019-05-01","2019-05-08"]
[null,{"$f":"IF(E4<>\"\",ROW()-2,\"\")","v":2},"Mme","MA",205,"JEAN ","PIERRE","2012-07-09","PARIS","France","666025HT",null,"2019-05-01","2019-05-08"]
[null,{"$f":"IF(E5<>\"\",ROW()-2,\"\")","v":3},"M","DZ",301,"TAOUFIK","ELMORABIT","1962-05-03","ORAN","ALGERIE","246321HB",null,"2019-05-02","2019-05-06"]
[null,{"$f":"IF(E6<>\"\",ROW()-2,\"\")","v":4},"M","US",210,"HOLCOMB","PETER","1975-08-06","NEW YORK","USA","BD6387501",null,"2019-05-02","2019-05-10"]
[]
[]
[]
[]
[null,null,null,null,"si un client arrive le 01/05/19 et quitte la chambre le:08/05/19 il doit s'apparaitre dans le statistique là ou j'ai fais des croits"]
[]
[]
[]
[]
[]
[]
[]
[]
[]
[null,null,null,null,"j'ai essayé ça mais ne marche pas:"]
[null,null,null,null,"=NB.SI.ENS(Tableau1[Date Arrivée];\"<=B3\";Tableau1[Date Départ];\">=Stat_Nuitée!$B3\";Tableau1[Nat];Stat_Nuitée!E2)"]

{"sheet":"Statistique","index":1,"n_rows":34,"n_cols":25,"rows_kept":34,"cut":false,"hidden":false,"merged":[]}
[6,"2019-05-01",2]
[null,"Date",null,"Nb\nChb","US","ES","FR","BE","IT","DE","NL","POR","UK","DK","NOR","POL","RU","MA","SU","TU","DZ","TN","AF"]
[null,{"$f":"B1","v":"2019-05-01"},null,{"$f":"IFERROR(SUM(IF(Liste<>\"\",1/COUNTIF(Liste,Liste))),\"\")","v":1},{"$f":"COUNTIFS(Tableau1[Date Arrivée],Statistique!$B3,Tableau1[Nat],Statistique!E$2)","v":0},{"$f":"COUNTIFS(Tableau1[Date Arrivée],Statistique!$B3,Tableau1[Nat],Statistique!F$2)","v":0},{"$f":"COUNTIFS(Tableau1[Date Arrivée],Statistique!$B3,Tableau1[Nat],Statistique!G$2)","v":0},{"$f":"COUNTIFS(Tableau1[Date Arrivée],Statistique!$B3,Tableau1[Nat],Statistique!H$2)","v":0},{"$f":"COUNTIFS(Tableau1[Date Arrivée],Statistique!$B3,Tableau1[Nat],Statistique!I$2)","v":0},{"$f":"COUNTIFS(Tableau1[Date Arrivée],Statistique!$B3,Tableau1[Nat],Statistique!J$2)","v":0},{"$f":"COUNTIFS(Tableau1[Date Arrivée],Statistique!$B3,Tableau1[Nat],Statistique!K$2)","v":0},{"$f":"COUNTIFS(Tableau1[Date Arrivée],Statistique!$B3,Tableau1[Nat],Statistique!L$2)","v":0},{"$f":"COUNTIFS(Tableau1[Date Arrivée],Statistique!$B3,Tableau1[Nat],Statistique!M$2)","v":0},{"$f":"COUNTIFS(Tableau1[Date Arrivée],Statistique!$B3,Tableau1[Nat],Statistique!N$2)","v":0},{"$f":"COUNTIFS(Tableau1[Date Arrivée],Statistique!$B3,Tableau1[Nat],Statistique!O$2)","v":0},{"$f":"COUNTIFS(Tableau1[Date Arrivée],Statistique!$B3,Tableau1[Nat],Statistique!P$2)","v":0},{"$f":"COUNTIFS(Tableau1[Date Arrivée],Statistique!$B3,Tableau1[Nat],Statistique!Q$2)","v":0},{"$f":"COUNTIFS(Tableau1[Date Arrivée],Statistique!$B3,Tableau1[Nat],Statistique!R$2)","v":2},{"$f":"COUNTIFS(Tableau1[Date Arrivée],Statistique!$B3,Tableau1[Nat],Statistique!S$2)","v":0},{"$f":"COUNTIFS(Tableau1[Date Arrivée],Statistique!$B3,Tableau1[Nat],Statistique!T$2)","v":0},{"$f":"COUNTIFS(Tableau1[Date Arrivée],Statistique!$B3,Tableau1[Nat],Statistique!U$2)","v":0},{"$f":"COUNTIFS(Tableau1[Date Arrivée],Statistique!$B3,Tableau1[Nat],Statistique!V$2)","v":0},{"$f":"COUNTIFS(Tableau1[Date Arrivée],Statistique!$B3,Tableau1[Nat],Statistique!W$2)","v":0},null,"solution sous réserve que la colonne M de Fiche_client soit classée par date"]
[null,{"$f":"B3+1","v":"2019-05-02"},null,{"$f":"IFERROR(SUM(IF(Liste<>\"\",1/COUNTIF(Liste,Liste))),\"\")","v":2},{"$f":"COUNTIFS(Tableau1[Date Arrivée],Statistique!$B4,Tableau1[Nat],Statistique!E$2)","v":1},{"$f":"COUNTIFS(Tableau1[Date Arrivée],Statistique!$B4,Tableau1[Nat],Statistique!F$2)","v":0},{"$f":"COUNTIFS(Tableau1[Date Arrivée],Statistique!$B4,Tableau1[Nat],Statistique!G$2)","v":0},{"$f":"COUNTIFS(Tableau1[Date Arrivée],Statistique!$B4,Tableau1[Nat],Statistique!H$2)","v":0},{"$f":"COUNTIFS(Tableau1[Date Arrivée],Statistique!$B4,Tableau1[Nat],Statistique!I$2)","v":0},{"$f":"COUNTIFS(Tableau1[Date Arrivée],Statistique!$B4,Tableau1[Nat],Statistique!J$2)","v":0},{"$f":"COUNTIFS(Tableau1[Date Arrivée],Statistique!$B4,Tableau1[Nat],Statistique!K$2)","v":0},{"$f":"COUNTIFS(Tableau1[Date Arrivée],Statistique!$B4,Tableau1[Nat],Statistique!L$2)","v":0},{"$f":"COUNTIFS(Tableau1[Date Arrivée],Statistique!$B4,Tableau1[Nat],Statistique!M$2)","v":0},{"$f":"COUNTIFS(Tableau1[Date Arrivée],Statistique!$B4,Tableau1[Nat],Statistique!N$2)","v":0},{"$f":"COUNTIFS(Tableau1[Date Arrivée],Statistique!$B4,Tableau1[Nat],Statistique!O$2)","v":0},{"$f":"COUNTIFS(Tableau1[Date Arrivée],Statistique!$B4,Tableau1[Nat],Statistique!P$2)","v":0},{"$f":"COUNTIFS(Tableau1[Date Arrivée],Statistique!$B4,Tableau1[Nat],Statistique!Q$2)","v":0},"*",{"$f":"COUNTIFS(Tableau1[Date Arrivée],Statistique!$B4,Tableau1[Nat],Statistique!S$2)","v":0},{"$f":"COUNTIFS(Tableau1[Date Arrivée],Statistique!$B4,Tableau1[Nat],Statistique!T$2)","v":0},{"$f":"COUNTIFS(Tableau1[Date Arrivée],Statistique!$B4,Tableau1[Nat],Statistique!U$2)","v":1},{"$f":"COUNTIFS(Tableau1[Date Arrivée],Statistique!$B4,Tableau1[Nat],Statistique!V$2)","v":0},{"$f":"COUNTIFS(Tableau1[Date Arrivée],Statistique!$B4,Tableau1[Nat],Statistique!W$2)","v":0},null,"voir le champ nommé \"Liste\" dans le gestionnaire de noms"]
[null,{"$f":"B4+1","v":"2019-05-03"},null,"*","*",{"$f":"COUNTIFS(Tableau1[Date Arrivée],Statistique!$B5,Tableau1[Nat],Statistique!F$2)","v":0},{"$f":"COUNTIFS(Tableau1[Date Arrivée],Statistique!$B5,Tableau1[Nat],Statistique!G$2)","v":0},{"$f":"COUNTIFS(Tableau1[Date Arrivée],Statistique!$B5,Tableau1[Nat],Statistique!H$2)","v":0},{"$f":"COUNTIFS(Tableau1[Date Arrivée],Statistique!$B5,Tableau1[Nat],Statistique!I$2)","v":0},{"$f":"COUNTIFS(Tableau1[Date Arrivée],Statistique!$B5,Tableau1[Nat],Statistique!J$2)","v":0},{"$f":"COUNTIFS(Tableau1[Date Arrivée],Statistique!$B5,Tableau1[Nat],Statistique!K$2)","v":0},{"$f":"COUNTIFS(Tableau1[Date Arrivée],Statistique!$B5,Tableau1[Nat],Statistique!L$2)","v":0},{"$f":"COUNTIFS(Tableau1[Date Arrivée],Statistique!$B5,Tableau1[Nat],Statistique!M$2)","v":0},{"$f":"COUNTIFS(Tableau1[Date Arrivée],Statistique!$B5,Tableau1[Nat],Statistique!N$2)","v":0},{"$f":"COUNTIFS(Tableau1[Date Arrivée],Statistique!$B5,Tableau1[Nat],Statistique!O$2)","v":0},{"$f":"COUNTIFS(Tableau1[Date Arrivée],Statistique!$B5,Tableau1[Nat],Statistique!P$2)","v":0},{"$f":"COUNTIFS(Tableau1[Date Arrivée],Statistique!$B5,Tableau1[Nat],Statistique!Q$2)","v":0},"*",{"$f":"COUNTIFS(Tableau1[Date Arrivée],Statistique!$B5,Tableau1[Nat],Statistique!S$2)","v":0},{"$f":"COUNTIFS(Tableau1[Date Arrivée],Statistique!$B5,Tableau1[Nat],Statistique!T$2)","v":0},"*",{"$f":"COUNTIFS(Tableau1[Date Arrivée],Statistique!$B5,Tableau1[Nat],Statistique!V$2)","v":0},{"$f":"COUNTIFS(Tableau1[Date Arrivée],Statistique!$B5,Tableau1[Nat],Statistique!W$2)","v":0},null,"ce champ en E de Fiche_client s'ajuste selon la date en B de cette feuille"]
[null,{"$f":"B5+1","v":"2019-05-04"},null,"*","*",{"$f":"COUNTIFS(Tableau1[Date Arrivée],Statistique!$B6,Tableau1[Nat],Statistique!F$2)","v":0},{"$f":"COUNTIFS(Tableau1[Date Arrivée],Statistique!$B6,Tableau1[Nat],Statistique!G$2)","v":0},{"$f":"COUNTIFS(Tableau1[Date Arrivée],Statistique!$B6,Tableau1[Nat],Statistique!H$2)","v":0},{"$f":"COUNTIFS(Tableau1[Date Arrivée],Statistique!$B6,Tableau1[Nat],Statistique!I$2)","v":0},{"$f":"COUNTIFS(Tableau1[Date Arrivée],Statistique!$B6,Tableau1[Nat],Statistique!J$2)","v":0},{"$f":"COUNTIFS(Tableau1[Date Arrivée],Statistique!$B6,Tableau1[Nat],Statistique!K$2)","v":0},{"$f":"COUNTIFS(Tableau1[Date Arrivée],Statistique!$B6,Tableau1[Nat],Statistique!L$2)","v":0},{"$f":"COUNTIFS(Tableau1[Date Arrivée],Statistique!$B6,Tableau1[Nat],Statistique!M$2)","v":0},{"$f":"COUNTIFS(Tableau1[Date Arrivée],Statistique!$B6,Tableau1[Nat],Statistique!N$2)","v":0},{"$f":"COUNTIFS(Tableau1[Date Arrivée],Statistique!$B6,Tableau1[Nat],Statistique!O$2)","v":0},{"$f":"COUNTIFS(Tableau1[Date Arrivée],Statistique!$B6,Tableau1[Nat],Statistique!P$2)","v":0},{"$f":"COUNTIFS(Tableau1[Date Arrivée],Statistique!$B6,Tableau1[Nat],Statistique!Q$2)","v":0},"*",{"$f":"COUNTIFS(Tableau1[Date Arrivée],Statistique!$B6,Tableau1[Nat],Statistique!S$2)","v":0},{"$f":"COUNTIFS(Tableau1[Date Arrivée],Statistique!$B6,Tableau1[Nat],Statistique!T$2)","v":0},"*",{"$f":"COUNTIFS(Tableau1[Date Arrivée],Statistique!$B6,Tableau1[Nat],Statistique!V$2)","v":0},{"$f":"COUNTIFS(Tableau1[Date Arrivée],Statistique!$B6,Tableau1[Nat],Statistique!W$2)","v":0}]
[null,"2019-05-05",null,"*","*",{"$f":"COUNTIFS(Tableau1[Date Arrivée],Statistique!$B7,Tableau1[Nat],Statistique!F$2)","v":0},{"$f":"COUNTIFS(Tableau1[Date Arrivée],Statistique!$B7,Tableau1[Nat],Statistique!G$2)","v":0},{"$f":"COUNTIFS(Tableau1[Date Arrivée],Statistique!$B7,Tableau1[Nat],Statistique!H$2)","v":0},{"$f":"COUNTIFS(Tableau1[Date Arrivée],Statistique!$B7,Tableau1[Nat],Statistique!I$2)","v":0},{"$f":"COUNTIFS(Tableau1[Date Arrivée],Statistique!$B7,Tableau1[Nat],Statistique!J$2)","v":0},{"$f":"COUNTIFS(Tableau1[Date Arrivée],Statistique!$B7,Tableau1[Nat],Statistique!K$2)","v":0},{"$f":"COUNTIFS(Tableau1[Date Arrivée],Statistique!$B7,Tableau1[Nat],Statistique!L$2)","v":0},{"$f":"COUNTIFS(Tableau1[Date Arrivée],Statistique!$B7,Tableau1[Nat],Statistique!M$2)","v":0},{"$f":"COUNTIFS(Tableau1[Date Arrivée],Statistique!$B7,Tableau1[Nat],Statistique!N$2)","v":0},{"$f":"COUNTIFS(Tableau1[Date Arrivée],Statistique!$B7,Tableau1[Nat],Statistique!O$2)","v":0},{"$f":"COUNTIFS(Tableau1[Date Arrivée],Statistique!$B7,Tableau1[Nat],Statistique!P$2)","v":0},{"$f":"COUNTIFS(Tableau1[Date Arrivée],Statistique!$B7,Tableau1[Nat],Statistique!Q$2)","v":0},"*",{"$f":"COUNTIFS(Tableau1[Date Arrivée],Statistique!$B7,Tableau1[Nat],Statistique!S$2)","v":0},{"$f":"COUNTIFS(Tableau1[Date Arrivée],Statistique!$B7,Tableau1[Nat],Statistique!T$2)","v":0},"*",{"$f":"COUNTIFS(Tableau1[Date Arrivée],Statistique!$B7,Tableau1[Nat],Statistique!V$2)","v":0},{"$f":"COUNTIFS(Tableau1[Date Arrivée],Statistique!$B7,Tableau1[Nat],Statistique!W$2)","v":0},null,"la formule en D de cette feuille est matricielle"]
[null,"2019-05-06",null,"*","*",{"$f":"COUNTIFS(Tableau1[Date Arrivée],Statistique!$B8,Tableau1[Nat],Statistique!F$2)","v":0},{"$f":"COUNTIFS(Tableau1[Date Arrivée],Statistique!$B8,Tableau1[Nat],Statistique!G$2)","v":0},{"$f":"COUNTIFS(Tableau1[Date Arrivée],Statistique!$B8,Tableau1[Nat],Statistique!H$2)","v":0},{"$f":"COUNTIFS(Tableau1[Date Arrivée],Statistique!$B8,Tableau1[Nat],Statistique!I$2)","v":0},{"$f":"COUNTIFS(Tableau1[Date Arrivée],Statistique!$B8,Tableau1[Nat],Statistique!J$2)","v":0},{"$f":"COUNTIFS(Tableau1[Date Arrivée],Statistique!$B8,Tableau1[Nat],Statistique!K$2)","v":0},{"$f":"COUNTIFS(Tableau1[Date Arrivée],Statistique!$B8,Tableau1[Nat],Statistique!L$2)","v":0},{"$f":"COUNTIFS(Tableau1[Date Arrivée],Statistique!$B8,Tableau1[Nat],Statistique!M$2)","v":0},{"$f":"COUNTIFS(Tableau1[Date Arrivée],Statistique!$B8,Tableau1[Nat],Statistique!N$2)","v":0},{"$f":"COUNTIFS(Tableau1[Date Arrivée],Statistique!$B8,Tableau1[Nat],Statistique!O$2)","v":0},{"$f":"COUNTIFS(Tableau1[Date Arrivée],Statistique!$B8,Tableau1[Nat],Statistique!P$2)","v":0},{"$f":"COUNTIFS(Tableau1[Date Arrivée],Statistique!$B8,Tableau1[Nat],Statistique!Q$2)","v":0},"*",{"$f":"COUNTIFS(Tableau1[Date Arrivée],Statistique!$B8,Tableau1[Nat],Statistique!S$2)","v":0},{"$f":"COUNTIFS(Tableau1[Date Arrivée],Statistique!$B8,Tableau1[Nat],Statistique!T$2)","v":0},{"$f":"COUNTIFS(Tableau1[Date Arrivée],Statistique!$B8,Tableau1[Nat],Statistique!U$2)","v":0},{"$f":"COUNTIFS(Tableau1[Date Arrivée],Statistique!$B8,Tableau1[Nat],Statistique!V$2)","v":0},{"$f":"COUNTIFS(Tableau1[Date Arrivée],Statistique!$B8,Tableau1[Nat],Statistique!W$2)","v":0},null,"elle doit être entrée avec la touche enter en maintenant les touches ctrl et shift enfoncées"]
[null,"2019-05-07",null,"*","*",{"$f":"COUNTIFS(Tableau1[Date Arrivée],Statistique!$B9,Tableau1[Nat],Statistique!F$2)","v":0},{"$f":"COUNTIFS(Tableau1[Date Arrivée],Statistique!$B9,Tableau1[Nat],Statistique!G$2)","v":0},{"$f":"COUNTIFS(Tableau1[Date Arrivée],Statistique!$B9,Tableau1[Nat],Statistique!H$2)","v":0},{"$f":"COUNTIFS(Tableau1[Date Arrivée],Statistique!$B9,Tableau1[Nat],Statistique!I$2)","v":0},{"$f":"COUNTIFS(Tableau1[Date Arrivée],Statistique!$B9,Tableau1[Nat],Statistique!J$2)","v":0},{"$f":"COUNTIFS(Tableau1[Date Arrivée],Statistique!$B9,Tableau1[Nat],Statistique!K$2)","v":0},{"$f":"COUNTIFS(Tableau1[Date Arrivée],Statistique!$B9,Tableau1[Nat],Statistique!L$2)","v":0},{"$f":"COUNTIFS(Tableau1[Date Arrivée],Statistique!$B9,Tableau1[Nat],Statistique!M$2)","v":0},{"$f":"COUNTIFS(Tableau1[Date Arrivée],Statistique!$B9,Tableau1[Nat],Statistique!N$2)","v":0},{"$f":"COUNTIFS(Tableau1[Date Arrivée],Statistique!$B9,Tableau1[Nat],Statistique!O$2)","v":0},{"$f":"COUNTIFS(Tableau1[Date Arrivée],Statistique!$B9,Tableau1[Nat],Statistique!P$2)","v":0},{"$f":"COUNTIFS(Tableau1[Date Arrivée],Statistique!$B9,Tableau1[Nat],Statistique!Q$2)","v":0},"*",{"$f":"COUNTIFS(Tableau1[Date Arrivée],Statistique!$B9,Tableau1[Nat],Statistique!S$2)","v":0},{"$f":"COUNTIFS(Tableau1[Date Arrivée],Statistique!$B9,Tableau1[Nat],Statistique!T$2)","v":0},{"$f":"COUNTIFS(Tableau1[Date Arrivée],Statistique!$B9,Tableau1[Nat],Statistique!U$2)","v":0},{"$f":"COUNTIFS(Tableau1[Date Arrivée],Statistique!$B9,Tableau1[Nat],Statistique!V$2)","v":0},{"$f":"COUNTIFS(Tableau1[Date Arrivée],Statistique!$B9,Tableau1[Nat],Statistique!W$2)","v":0},null,"(elle doit safficher automatiquement entre accolades dans la barre de formule"]
[null,"2019-05-08",null,"*","*",{"$f":"COUNTIFS(Tableau1[Date Arrivée],Statistique!$B10,Tableau1[Nat],Statistique!F$2)","v":0},{"$f":"COUNTIFS(Tableau1[Date Arrivée],Statistique!$B10,Tableau1[Nat],Statistique!G$2)","v":0},{"$f":"COUNTIFS(Tableau1[Date Arrivée],Statistique!$B10,Tableau1[Nat],Statistique!H$2)","v":0},{"$f":"COUNTIFS(Tableau1[Date Arrivée],Statistique!$B10,Tableau1[Nat],Statistique!I$2)","v":0},{"$f":"COUNTIFS(Tableau1[Date Arrivée],Statistique!$B10,Tableau1[Nat],Statistique!J$2)","v":0},{"$f":"COUNTIFS(Tableau1[Date Arrivée],Statistique!$B10,Tableau1[Nat],Statistique!K$2)","v":0},{"$f":"COUNTIFS(Tableau1[Date Arrivée],Statistique!$B10,Tableau1[Nat],Statistique!L$2)","v":0},{"$f":"COUNTIFS(Tableau1[Date Arrivée],Statistique!$B10,Tableau1[Nat],Statistique!M$2)","v":0},{"$f":"COUNTIFS(Tableau1[Date Arrivée],Statistique!$B10,Tableau1[Nat],Statistique!N$2)","v":0},{"$f":"COUNTIFS(Tableau1[Date Arrivée],Statistique!$B10,Tableau1[Nat],Statistique!O$2)","v":0},{"$f":"COUNTIFS(Tableau1[Date Arrivée],Statistique!$B10,Tableau1[Nat],Statistique!P$2)","v":0},{"$f":"COUNTIFS(Tableau1[Date Arrivée],Statistique!$B10,Tableau1[Nat],Statistique!Q$2)","v":0},{"$f":"COUNTIFS(Tableau1[Date Arrivée],Statistique!$B10,Tableau1[Nat],Statistique!R$2)","v":0},{"$f":"COUNTIFS(Tableau1[Date Arrivée],Statistique!$B10,Tableau1[Nat],Statistique!S$2)","v":0},{"$f":"COUNTIFS(Tableau1[Date Arrivée],Statistique!$B10,Tableau1[Nat],Statistique!T$2)","v":0},{"$f":"COUNTIFS(Tableau1[Date Arrivée],Statistique!$B10,Tableau1[Nat],Statistique!U$2)","v":0},{"$f":"COUNTIFS(Tableau1[Date Arrivée],Statistique!$B10,Tableau1[Nat],Statistique!V$2)","v":0},{"$f":"COUNTIFS(Tableau1[Date Arrivée],Statistique!$B10,Tableau1[Nat],Statistique!W$2)","v":0}]
[null,"2019-05-09",null,"*","*",{"$f":"COUNTIFS(Tableau1[Date Arrivée],Statistique!$B11,Tableau1[Nat],Statistique!F$2)","v":0},{"$f":"COUNTIFS(Tableau1[Date Arrivée],Statistique!$B11,Tableau1[Nat],Statistique!G$2)","v":0},{"$f":"COUNTIFS(Tableau1[Date Arrivée],Statistique!$B11,Tableau1[Nat],Statistique!H$2)","v":0},{"$f":"COUNTIFS(Tableau1[Date Arrivée],Statistique!$B11,Tableau1[Nat],Statistique!I$2)","v":0},{"$f":"COUNTIFS(Tableau1[Date Arrivée],Statistique!$B11,Tableau1[Nat],Statistique!J$2)","v":0},{"$f":"COUNTIFS(Tableau1[Date Arrivée],Statistique!$B11,Tableau1[Nat],Statistique!K$2)","v":0},{"$f":"COUNTIFS(Tableau1[Date Arrivée],Statistique!$B11,Tableau1[Nat],Statistique!L$2)","v":0},{"$f":"COUNTIFS(Tableau1[Date Arrivée],Statistique!$B11,Tableau1[Nat],Statistique!M$2)","v":0},{"$f":"COUNTIFS(Tableau1[Date Arrivée],Statistique!$B11,Tableau1[Nat],Statistique!N$2)","v":0},{"$f":"COUNTIFS(Tableau1[Date Arrivée],Statistique!$B11,Tableau1[Nat],Statistique!O$2)","v":0},{"$f":"COUNTIFS(Tableau1[Date Arrivée],Statistique!$B11,Tableau1[Nat],Statistique!P$2)","v":0},{"$f":"COUNTIFS(Tableau1[Date Arrivée],Statistique!$B11,Tableau1[Nat],Statistique!Q$2)","v":0},{"$f":"COUNTIFS(Tableau1[Date Arrivée],Statistique!$B11,Tableau1[Nat],Statistique!R$2)","v":0},{"$f":"COUNTIFS(Tableau1[Date Arrivée],Statistique!$B11,Tableau1[Nat],Statistique!S$2)","v":0},{"$f":"COUNTIFS(Tableau1[Date Arrivée],Statistique!$B11,Tableau1[Nat],Statistique!T$2)","v":0},{"$f":"COUNTIFS(Tableau1[Date Arrivée],Statistique!$B11,Tableau1[Nat],Statistique!U$2)","v":0},{"$f":"COUNTIFS(Tableau1[Date Arrivée],Statistique!$B11,Tableau1[Nat],Statistique!V$2)","v":0},{"$f":"COUNTIFS(Tableau1[Date Arrivée],Statistique!$B11,Tableau1[Nat],Statistique!W$2)","v":0},null,"cette formule étant gourmande en capacité, bien lilimer le champ au nombre de lignes utiles "]
[null,"2019-05-10",null,{"$f":"IFERROR(SUM(IF(Liste<>\"\",1/COUNTIF(Liste,Liste))),\"\")","v":""},null,{"$f":"COUNTIFS(Tableau1[Date Arrivée],Statistique!$B12,Tableau1[Nat],Statistique!F$2)","v":0},{"$f":"COUNTIFS(Tableau1[Date Arrivée],Statistique!$B12,Tableau1[Nat],Statistique!G$2)","v":0},{"$f":"COUNTIFS(Tableau1[Date Arrivée],Statistique!$B12,Tableau1[Nat],Statistique!H$2)","v":0},{"$f":"COUNTIFS(Tableau1[Date Arrivée],Statistique!$B12,Tableau1[Nat],Statistique!I$2)","v":0},{"$f":"COUNTIFS(Tableau1[Date Arrivée],Statistique!$B12,Tableau1[Nat],Statistique!J$2)","v":0},{"$f":"COUNTIFS(Tableau1[Date Arrivée],Statistique!$B12,Tableau1[Nat],Statistique!K$2)","v":0},{"$f":"COUNTIFS(Tableau1[Date Arrivée],Statistique!$B12,Tableau1[Nat],Statistique!L$2)","v":0},{"$f":"COUNTIFS(Tableau1[Date Arrivée],Statistique!$B12,Tableau1[Nat],Statistique!M$2)","v":0},{"$f":"COUNTIFS(Tableau1[Date Arrivée],Statistique!$B12,Tableau1[Nat],Statistique!N$2)","v":0},{"$f":"COUNTIFS(Tableau1[Date Arrivée],Statistique!$B12,Tableau1[Nat],Statistique!O$2)","v":0},{"$f":"COUNTIFS(Tableau1[Date Arrivée],Statistique!$B12,Tableau1[Nat],Statistique!P$2)","v":0},{"$f":"COUNTIFS(Tableau1[Date Arrivée],Statistique!$B12,Tableau1[Nat],Statistique!Q$2)","v":0},{"$f":"COUNTIFS(Tableau1[Date Arrivée],Statistique!$B12,Tableau1[Nat],Statistique!R$2)","v":0},{"$f":"COUNTIFS(Tableau1[Date Arrivée],Statistique!$B12,Tableau1[Nat],Statistique!S$2)","v":0},{"$f":"COUNTIFS(Tableau1[Date Arrivée],Statistique!$B12,Tableau1[Nat],Statistique!T$2)","v":0},{"$f":"COUNTIFS(Tableau1[Date Arrivée],Statistique!$B12,Tableau1[Nat],Statistique!U$2)","v":0},{"$f":"COUNTIFS(Tableau1[Date Arrivée],Statistique!$B12,Tableau1[Nat],Statistique!V$2)","v":0},{"$f":"COUNTIFS(Tableau1[Date Arrivée],Statistique!$B12,Tableau1[Nat],Statistique!W$2)","v":0},null,"(ici de 3 à 1000 pour la feuille enFiche_client"]
[null,"2019-05-11",null,{"$f":"IFERROR(SUM(IF(Liste<>\"\",1/COUNTIF(Liste,Liste))),\"\")","v":""},null,{"$f":"COUNTIFS(Tableau1[Date Arrivée],Statistique!$B13,Tableau1[Nat],Statistique!F$2)","v":0},{"$f":"COUNTIFS(Tableau1[Date Arrivée],Statistique!$B13,Tableau1[Nat],Statistique!G$2)","v":0},{"$f":"COUNTIFS(Tableau1[Date Arrivée],Statistique!$B13,Tableau1[Nat],Statistique!H$2)","v":0},{"$f":"COUNTIFS(Tableau1[Date Arrivée],Statistique!$B13,Tableau1[Nat],Statistique!I$2)","v":0},{"$f":"COUNTIFS(Tableau1[Date Arrivée],Statistique!$B13,Tableau1[Nat],Statistique!J$2)","v":0},{"$f":"COUNTIFS(Tableau1[Date Arrivée],Statistique!$B13,Tableau1[Nat],Statistique!K$2)","v":0},{"$f":"COUNTIFS(Tableau1[Date Arrivée],Statistique!$B13,Tableau1[Nat],Statistique!L$2)","v":0},{"$f":"COUNTIFS(Tableau1[Date Arrivée],Statistique!$B13,Tableau1[Nat],Statistique!M$2)","v":0},{"$f":"COUNTIFS(Tableau1[Date Arrivée],Statistique!$B13,Tableau1[Nat],Statistique!N$2)","v":0},{"$f":"COUNTIFS(Tableau1[Date Arrivée],Statistique!$B13,Tableau1[Nat],Statistique!O$2)","v":0},{"$f":"COUNTIFS(Tableau1[Date Arrivée],Statistique!$B13,Tableau1[Nat],Statistique!P$2)","v":0},{"$f":"COUNTIFS(Tableau1[Date Arrivée],Statistique!$B13,Tableau1[Nat],Statistique!Q$2)","v":0},{"$f":"COUNTIFS(Tableau1[Date Arrivée],Statistique!$B13,Tableau1[Nat],Statistique!R$2)","v":0},{"$f":"COUNTIFS(Tableau1[Date Arrivée],Statistique!$B13,Tableau1[Nat],Statistique!S$2)","v":0},{"$f":"COUNTIFS(Tableau1[Date Arrivée],Statistique!$B13,Tableau1[Nat],Statistique!T$2)","v":0},{"$f":"COUNTIFS(Tableau1[Date Arrivée],Statistique!$B13,Tableau1[Nat],Statistique!U$2)","v":0},{"$f":"COUNTIFS(Tableau1[Date Arrivée],Statistique!$B13,Tableau1[Nat],Statistique!V$2)","v":0},{"$f":"COUNTIFS(Tableau1[Date Arrivée],Statistique!$B13,Tableau1[Nat],Statistique!W$2)","v":0}]
[null,"2019-05-12",null,{"$f":"IFERROR(SUM(IF(Liste<>\"\",1/COUNTIF(Liste,Liste))),\"\")","v":""},{"$f":"COUNTIFS(Tableau1[Date Arrivée],Statistique!$B14,Tableau1[Nat],Statistique!E$2)","v":0},{"$f":"COUNTIFS(Tableau1[Date Arrivée],Statistique!$B14,Tableau1[Nat],Statistique!F$2)","v":0},{"$f":"COUNTIFS(Tableau1[Date Arrivée],Statistique!$B14,Tableau1[Nat],Statistique!G$2)","v":0},{"$f":"COUNTIFS(Tableau1[Date Arrivée],Statistique!$B14,Tableau1[Nat],Statistique!H$2)","v":0},{"$f":"COUNTIFS(Tableau1[Date Arrivée],Statistique!$B14,Tableau1[Nat],Statistique!I$2)","v":0},{"$f":"COUNTIFS(Tableau1[Date Arrivée],Statistique!$B14,Tableau1[Nat],Statistique!J$2)","v":0},{"$f":"COUNTIFS(Tableau1[Date Arrivée],Statistique!$B14,Tableau1[Nat],Statistique!K$2)","v":0},{"$f":"COUNTIFS(Tableau1[Date Arrivée],Statistique!$B14,Tableau1[Nat],Statistique!L$2)","v":0},{"$f":"COUNTIFS(Tableau1[Date Arrivée],Statistique!$B14,Tableau1[Nat],Statistique!M$2)","v":0},{"$f":"COUNTIFS(Tableau1[Date Arrivée],Statistique!$B14,Tableau1[Nat],Statistique!N$2)","v":0},{"$f":"COUNTIFS(Tableau1[Date Arrivée],Statistique!$B14,Tableau1[Nat],Statistique!O$2)","v":0},{"$f":"COUNTIFS(Tableau1[Date Arrivée],Statistique!$B14,Tableau1[Nat],Statistique!P$2)","v":0},{"$f":"COUNTIFS(Tableau1[Date Arrivée],Statistique!$B14,Tableau1[Nat],Statistique!Q$2)","v":0},{"$f":"COUNTIFS(Tableau1[Date Arrivée],Statistique!$B14,Tableau1[Nat],Statistique!R$2)","v":0},{"$f":"COUNTIFS(Tableau1[Date Arrivée],Statistique!$B14,Tableau1[Nat],Statistique!S$2)","v":0},{"$f":"COUNTIFS(Tableau1[Date Arrivée],Statistique!$B14,Tableau1[Nat],Statistique!T$2)","v":0},{"$f":"COUNTIFS(Tableau1[Date Arrivée],Statistique!$B14,Tableau1[Nat],Statistique!U$2)","v":0},{"$f":"COUNTIFS(Tableau1[Date Arrivée],Statistique!$B14,Tableau1[Nat],Statistique!V$2)","v":0},{"$f":"COUNTIFS(Tableau1[Date Arrivée],Statistique!$B14,Tableau1[Nat],Statistique!W$2)","v":0},null,"Le code SIERREUR(formule);\"\") évite l'affichage #N/A lorsque la date en B n'existe pas dans la listeFiche_client"]
[null,"2019-05-13",null,{"$f":"IFERROR(SUM(IF(Liste<>\"\",1/COUNTIF(Liste,Liste))),\"\")","v":""},{"$f":"COUNTIFS(Tableau1[Date Arrivée],Statistique!$B15,Tableau1[Nat],Statistique!E$2)","v":0},{"$f":"COUNTIFS(Tableau1[Date Arrivée],Statistique!$B15,Tableau1[Nat],Statistique!F$2)","v":0},{"$f":"COUNTIFS(Tableau1[Date Arrivée],Statistique!$B15,Tableau1[Nat],Statistique!G$2)","v":0},{"$f":"COUNTIFS(Tableau1[Date Arrivée],Statistique!$B15,Tableau1[Nat],Statistique!H$2)","v":0},{"$f":"COUNTIFS(Tableau1[Date Arrivée],Statistique!$B15,Tableau1[Nat],Statistique!I$2)","v":0},{"$f":"COUNTIFS(Tableau1[Date Arrivée],Statistique!$B15,Tableau1[Nat],Statistique!J$2)","v":0},{"$f":"COUNTIFS(Tableau1[Date Arrivée],Statistique!$B15,Tableau1[Nat],Statistique!K$2)","v":0},{"$f":"COUNTIFS(Tableau1[Date Arrivée],Statistique!$B15,Tableau1[Nat],Statistique!L$2)","v":0},{"$f":"COUNTIFS(Tableau1[Date Arrivée],Statistique!$B15,Tableau1[Nat],Statistique!M$2)","v":0},{"$f":"COUNTIFS(Tableau1[Date Arrivée],Statistique!$B15,Tableau1[Nat],Statistique!N$2)","v":0},{"$f":"COUNTIFS(Tableau1[Date Arrivée],Statistique!$B15,Tableau1[Nat],Statistique!O$2)","v":0},{"$f":"COUNTIFS(Tableau1[Date Arrivée],Statistique!$B15,Tableau1[Nat],Statistique!P$2)","v":0},{"$f":"COUNTIFS(Tableau1[Date Arrivée],Statistique!$B15,Tableau1[Nat],Statistique!Q$2)","v":0},{"$f":"COUNTIFS(Tableau1[Date Arrivée],Statistique!$B15,Tableau1[Nat],Statistique!R$2)","v":0},{"$f":"COUNTIFS(Tableau1[Date Arrivée],Statistique!$B15,Tableau1[Nat],Statistique!S$2)","v":0},{"$f":"COUNTIFS(Tableau1[Date Arrivée],Statistique!$B15,Tableau1[Nat],Statistique!T$2)","v":0},{"$f":"COUNTIFS(Tableau1[Date Arrivée],Statistique!$B15,Tableau1[Nat],Statistique!U$2)","v":0},{"$f":"COUNTIFS(Tableau1[Date Arrivée],Statistique!$B15,Tableau1[Nat],Statistique!V$2)","v":0},{"$f":"COUNTIFS(Tableau1[Date Arrivée],Statistique!$B15,Tableau1[Nat],Statistique!W$2)","v":0}]
[null,"2019-05-14",null,{"$f":"IFERROR(SUM(IF(Liste<>\"\",1/COUNTIF(Liste,Liste))),\"\")","v":""},{"$f":"COUNTIFS(Tableau1[Date Arrivée],Statistique!$B16,Tableau1[Nat],Statistique!E$2)","v":0},{"$f":"COUNTIFS(Tableau1[Date Arrivée],Statistique!$B16,Tableau1[Nat],Statistique!F$2)","v":0},{"$f":"COUNTIFS(Tableau1[Date Arrivée],Statistique!$B16,Tableau1[Nat],Statistique!G$2)","v":0},{"$f":"COUNTIFS(Tableau1[Date Arrivée],Statistique!$B16,Tableau1[Nat],Statistique!H$2)","v":0},{"$f":"COUNTIFS(Tableau1[Date Arrivée],Statistique!$B16,Tableau1[Nat],Statistique!I$2)","v":0},{"$f":"COUNTIFS(Tableau1[Date Arrivée],Statistique!$B16,Tableau1[Nat],Statistique!J$2)","v":0},{"$f":"COUNTIFS(Tableau1[Date Arrivée],Statistique!$B16,Tableau1[Nat],Statistique!K$2)","v":0},{"$f":"COUNTIFS(Tableau1[Date Arrivée],Statistique!$B16,Tableau1[Nat],Statistique!L$2)","v":0},{"$f":"COUNTIFS(Tableau1[Date Arrivée],Statistique!$B16,Tableau1[Nat],Statistique!M$2)","v":0},{"$f":"COUNTIFS(Tableau1[Date Arrivée],Statistique!$B16,Tableau1[Nat],Statistique!N$2)","v":0},{"$f":"COUNTIFS(Tableau1[Date Arrivée],Statistique!$B16,Tableau1[Nat],Statistique!O$2)","v":0},{"$f":"COUNTIFS(Tableau1[Date Arrivée],Statistique!$B16,Tableau1[Nat],Statistique!P$2)","v":0},{"$f":"COUNTIFS(Tableau1[Date Arrivée],Statistique!$B16,Tableau1[Nat],Statistique!Q$2)","v":0},{"$f":"COUNTIFS(Tableau1[Date Arrivée],Statistique!$B16,Tableau1[Nat],Statistique!R$2)","v":0},{"$f":"COUNTIFS(Tableau1[Date Arrivée],Statistique!$B16,Tableau1[Nat],Statistique!S$2)","v":0},{"$f":"COUNTIFS(Tableau1[Date Arrivée],Statistique!$B16,Tableau1[Nat],Statistique!T$2)","v":0},{"$f":"COUNTIFS(Tableau1[Date Arrivée],Statistique!$B16,Tableau1[Nat],Statistique!U$2)","v":0},{"$f":"COUNTIFS(Tableau1[Date Arrivée],Statistique!$B16,Tableau1[Nat],Statistique!V$2)","v":0},{"$f":"COUNTIFS(Tableau1[Date Arrivée],Statistique!$B16,Tableau1[Nat],Statistique!W$2)","v":0}]
[null,"2019-05-15",null,{"$f":"IFERROR(SUM(IF(Liste<>\"\",1/COUNTIF(Liste,Liste))),\"\")","v":""},{"$f":"COUNTIFS(Tableau1[Date Arrivée],Statistique!$B17,Tableau1[Nat],Statistique!E$2)","v":0},{"$f":"COUNTIFS(Tableau1[Date Arrivée],Statistique!$B17,Tableau1[Nat],Statistique!F$2)","v":0},{"$f":"COUNTIFS(Tableau1[Date Arrivée],Statistique!$B17,Tableau1[Nat],Statistique!G$2)","v":0},{"$f":"COUNTIFS(Tableau1[Date Arrivée],Statistique!$B17,Tableau1[Nat],Statistique!H$2)","v":0},{"$f":"COUNTIFS(Tableau1[Date Arrivée],Statistique!$B17,Tableau1[Nat],Statistique!I$2)","v":0},{"$f":"COUNTIFS(Tableau1[Date Arrivée],Statistique!$B17,Tableau1[Nat],Statistique!J$2)","v":0},{"$f":"COUNTIFS(Tableau1[Date Arrivée],Statistique!$B17,Tableau1[Nat],Statistique!K$2)","v":0},{"$f":"COUNTIFS(Tableau1[Date Arrivée],Statistique!$B17,Tableau1[Nat],Statistique!L$2)","v":0},{"$f":"COUNTIFS(Tableau1[Date Arrivée],Statistique!$B17,Tableau1[Nat],Statistique!M$2)","v":0},{"$f":"COUNTIFS(Tableau1[Date Arrivée],Statistique!$B17,Tableau1[Nat],Statistique!N$2)","v":0},{"$f":"COUNTIFS(Tableau1[Date Arrivée],Statistique!$B17,Tableau1[Nat],Statistique!O$2)","v":0},{"$f":"COUNTIFS(Tableau1[Date Arrivée],Statistique!$B17,Tableau1[Nat],Statistique!P$2)","v":0},{"$f":"COUNTIFS(Tableau1[Date Arrivée],Statistique!$B17,Tableau1[Nat],Statistique!Q$2)","v":0},{"$f":"COUNTIFS(Tableau1[Date Arrivée],Statistique!$B17,Tableau1[Nat],Statistique!R$2)","v":0},{"$f":"COUNTIFS(Tableau1[Date Arrivée],Statistique!$B17,Tableau1[Nat],Statistique!S$2)","v":0},{"$f":"COUNTIFS(Tableau1[Date Arrivée],Statistique!$B17,Tableau1[Nat],Statistique!T$2)","v":0},{"$f":"COUNTIFS(Tableau1[Date Arrivée],Statistique!$B17,Tableau1[Nat],Statistique!U$2)","v":0},{"$f":"COUNTIFS(Tableau1[Date Arrivée],Statistique!$B17,Tableau1[Nat],Statistique!V$2)","v":0},{"$f":"COUNTIFS(Tableau1[Date Arrivée],Statistique!$B17,Tableau1[Nat],Statistique!W$2)","v":0}]
[null,"2019-05-16",null,{"$f":"IFERROR(SUM(IF(Liste<>\"\",1/COUNTIF(Liste,Liste))),\"\")","v":""},{"$f":"COUNTIFS(Tableau1[Date Arrivée],Statistique!$B18,Tableau1[Nat],Statistique!E$2)","v":0},{"$f":"COUNTIFS(Tableau1[Date Arrivée],Statistique!$B18,Tableau1[Nat],Statistique!F$2)","v":0},{"$f":"COUNTIFS(Tableau1[Date Arrivée],Statistique!$B18,Tableau1[Nat],Statistique!G$2)","v":0},{"$f":"COUNTIFS(Tableau1[Date Arrivée],Statistique!$B18,Tableau1[Nat],Statistique!H$2)","v":0},{"$f":"COUNTIFS(Tableau1[Date Arrivée],Statistique!$B18,Tableau1[Nat],Statistique!I$2)","v":0},{"$f":"COUNTIFS(Tableau1[Date Arrivée],Statistique!$B18,Tableau1[Nat],Statistique!J$2)","v":0},{"$f":"COUNTIFS(Tableau1[Date Arrivée],Statistique!$B18,Tableau1[Nat],Statistique!K$2)","v":0},{"$f":"COUNTIFS(Tableau1[Date Arrivée],Statistique!$B18,Tableau1[Nat],Statistique!L$2)","v":0},{"$f":"COUNTIFS(Tableau1[Date Arrivée],Statistique!$B18,Tableau1[Nat],Statistique!M$2)","v":0},{"$f":"COUNTIFS(Tableau1[Date Arrivée],Statistique!$B18,Tableau1[Nat],Statistique!N$2)","v":0},{"$f":"COUNTIFS(Tableau1[Date Arrivée],Statistique!$B18,Tableau1[Nat],Statistique!O$2)","v":0},{"$f":"COUNTIFS(Tableau1[Date Arrivée],Statistique!$B18,Tableau1[Nat],Statistique!P$2)","v":0},{"$f":"COUNTIFS(Tableau1[Date Arrivée],Statistique!$B18,Tableau1[Nat],Statistique!Q$2)","v":0},{"$f":"COUNTIFS(Tableau1[Date Arrivée],Statistique!$B18,Tableau1[Nat],Statistique!R$2)","v":0},{"$f":"COUNTIFS(Tableau1[Date Arrivée],Statistique!$B18,Tableau1[Nat],Statistique!S$2)","v":0},{"$f":"COUNTIFS(Tableau1[Date Arrivée],Statistique!$B18,Tableau1[Nat],Statistique!T$2)","v":0},{"$f":"COUNTIFS(Tableau1[Date Arrivée],Statistique!$B18,Tableau1[Nat],Statistique!U$2)","v":0},{"$f":"COUNTIFS(Tableau1[Date Arrivée],Statistique!$B18,Tableau1[Nat],Statistique!V$2)","v":0},{"$f":"COUNTIFS(Tableau1[Date Arrivée],Statistique!$B18,Tableau1[Nat],Statistique!W$2)","v":0}]
[null,"2019-05-17",null,{"$f":"IFERROR(SUM(IF(Liste<>\"\",1/COUNTIF(Liste,Liste))),\"\")","v":""},{"$f":"COUNTIFS(Tableau1[Date Arrivée],Statistique!$B19,Tableau1[Nat],Statistique!E$2)","v":0},{"$f":"COUNTIFS(Tableau1[Date Arrivée],Statistique!$B19,Tableau1[Nat],Statistique!F$2)","v":0},{"$f":"COUNTIFS(Tableau1[Date Arrivée],Statistique!$B19,Tableau1[Nat],Statistique!G$2)","v":0},{"$f":"COUNTIFS(Tableau1[Date Arrivée],Statistique!$B19,Tableau1[Nat],Statistique!H$2)","v":0},{"$f":"COUNTIFS(Tableau1[Date Arrivée],Statistique!$B19,Tableau1[Nat],Statistique!I$2)","v":0},{"$f":"COUNTIFS(Tableau1[Date Arrivée],Statistique!$B19,Tableau1[Nat],Statistique!J$2)","v":0},{"$f":"COUNTIFS(Tableau1[Date Arrivée],Statistique!$B19,Tableau1[Nat],Statistique!K$2)","v":0},{"$f":"COUNTIFS(Tableau1[Date Arrivée],Statistique!$B19,Tableau1[Nat],Statistique!L$2)","v":0},{"$f":"COUNTIFS(Tableau1[Date Arrivée],Statistique!$B19,Tableau1[Nat],Statistique!M$2)","v":0},{"$f":"COUNTIFS(Tableau1[Date Arrivée],Statistique!$B19,Tableau1[Nat],Statistique!N$2)","v":0},{"$f":"COUNTIFS(Tableau1[Date Arrivée],Statistique!$B19,Tableau1[Nat],Statistique!O$2)","v":0},{"$f":"COUNTIFS(Tableau1[Date Arrivée],Statistique!$B19,Tableau1[Nat],Statistique!P$2)","v":0},{"$f":"COUNTIFS(Tableau1[Date Arrivée],Statistique!$B19,Tableau1[Nat],Statistique!Q$2)","v":0},{"$f":"COUNTIFS(Tableau1[Date Arrivée],Statistique!$B19,Tableau1[Nat],Statistique!R$2)","v":0},{"$f":"COUNTIFS(Tableau1[Date Arrivée],Statistique!$B19,Tableau1[Nat],Statistique!S$2)","v":0},{"$f":"COUNTIFS(Tableau1[Date Arrivée],Statistique!$B19,Tableau1[Nat],Statistique!T$2)","v":0},{"$f":"COUNTIFS(Tableau1[Date Arrivée],Statistique!$B19,Tableau1[Nat],Statistique!U$2)","v":0},{"$f":"COUNTIFS(Tableau1[Date Arrivée],Statistique!$B19,Tableau1[Nat],Statistique!V$2)","v":0},{"$f":"COUNTIFS(Tableau1[Date Arrivée],Statistique!$B19,Tableau1[Nat],Statistique!W$2)","v":0}]
[null,"2019-05-18",null,{"$f":"IFERROR(SUM(IF(Liste<>\"\",1/COUNTIF(Liste,Liste))),\"\")","v":""},{"$f":"COUNTIFS(Tableau1[Date Arrivée],Statistique!$B20,Tableau1[Nat],Statistique!E$2)","v":0},{"$f":"COUNTIFS(Tableau1[Date Arrivée],Statistique!$B20,Tableau1[Nat],Statistique!F$2)","v":0},{"$f":"COUNTIFS(Tableau1[Date Arrivée],Statistique!$B20,Tableau1[Nat],Statistique!G$2)","v":0},{"$f":"COUNTIFS(Tableau1[Date Arrivée],Statistique!$B20,Tableau1[Nat],Statistique!H$2)","v":0},{"$f":"COUNTIFS(Tableau1[Date Arrivée],Statistique!$B20,Tableau1[Nat],Statistique!I$2)","v":0},{"$f":"COUNTIFS(Tableau1[Date Arrivée],Statistique!$B20,Tableau1[Nat],Statistique!J$2)","v":0},{"$f":"COUNTIFS(Tableau1[Date Arrivée],Statistique!$B20,Tableau1[Nat],Statistique!K$2)","v":0},{"$f":"COUNTIFS(Tableau1[Date Arrivée],Statistique!$B20,Tableau1[Nat],Statistique!L$2)","v":0},{"$f":"COUNTIFS(Tableau1[Date Arrivée],Statistique!$B20,Tableau1[Nat],Statistique!M$2)","v":0},{"$f":"COUNTIFS(Tableau1[Date Arrivée],Statistique!$B20,Tableau1[Nat],Statistique!N$2)","v":0},{"$f":"COUNTIFS(Tableau1[Date Arrivée],Statistique!$B20,Tableau1[Nat],Statistique!O$2)","v":0},{"$f":"COUNTIFS(Tableau1[Date Arrivée],Statistique!$B20,Tableau1[Nat],Statistique!P$2)","v":0},{"$f":"COUNTIFS(Tableau1[Date Arrivée],Statistique!$B20,Tableau1[Nat],Statistique!Q$2)","v":0},{"$f":"COUNTIFS(Tableau1[Date Arrivée],Statistique!$B20,Tableau1[Nat],Statistique!R$2)","v":0},{"$f":"COUNTIFS(Tableau1[Date Arrivée],Statistique!$B20,Tableau1[Nat],Statistique!S$2)","v":0},{"$f":"COUNTIFS(Tableau1[Date Arrivée],Statistique!$B20,Tableau1[Nat],Statistique!T$2)","v":0},{"$f":"COUNTIFS(Tableau1[Date Arrivée],Statistique!$B20,Tableau1[Nat],Statistique!U$2)","v":0},{"$f":"COUNTIFS(Tableau1[Date Arrivée],Statistique!$B20,Tableau1[Nat],Statistique!V$2)","v":0},{"$f":"COUNTIFS(Tableau1[Date Arrivée],Statistique!$B20,Tableau1[Nat],Statistique!W$2)","v":0}]
[null,"2019-05-19",null,{"$f":"IFERROR(SUM(IF(Liste<>\"\",1/COUNTIF(Liste,Liste))),\"\")","v":""},{"$f":"COUNTIFS(Tableau1[Date Arrivée],Statistique!$B21,Tableau1[Nat],Statistique!E$2)","v":0},{"$f":"COUNTIFS(Tableau1[Date Arrivée],Statistique!$B21,Tableau1[Nat],Statistique!F$2)","v":0},{"$f":"COUNTIFS(Tableau1[Date Arrivée],Statistique!$B21,Tableau1[Nat],Statistique!G$2)","v":0},{"$f":"COUNTIFS(Tableau1[Date Arrivée],Statistique!$B21,Tableau1[Nat],Statistique!H$2)","v":0},{"$f":"COUNTIFS(Tableau1[Date Arrivée],Statistique!$B21,Tableau1[Nat],Statistique!I$2)","v":0},{"$f":"COUNTIFS(Tableau1[Date Arrivée],Statistique!$B21,Tableau1[Nat],Statistique!J$2)","v":0},{"$f":"COUNTIFS(Tableau1[Date Arrivée],Statistique!$B21,Tableau1[Nat],Statistique!K$2)","v":0},{"$f":"COUNTIFS(Tableau1[Date Arrivée],Statistique!$B21,Tableau1[Nat],Statistique!L$2)","v":0},{"$f":"COUNTIFS(Tableau1[Date Arrivée],Statistique!$B21,Tableau1[Nat],Statistique!M$2)","v":0},{"$f":"COUNTIFS(Tableau1[Date Arrivée],Statistique!$B21,Tableau1[Nat],Statistique!N$2)","v":0},{"$f":"COUNTIFS(Tableau1[Date Arrivée],Statistique!$B21,Tableau1[Nat],Statistique!O$2)","v":0},{"$f":"COUNTIFS(Tableau1[Date Arrivée],Statistique!$B21,Tableau1[Nat],Statistique!P$2)","v":0},{"$f":"COUNTIFS(Tableau1[Date Arrivée],Statistique!$B21,Tableau1[Nat],Statistique!Q$2)","v":0},{"$f":"COUNTIFS(Tableau1[Date Arrivée],Statistique!$B21,Tableau1[Nat],Statistique!R$2)","v":0},{"$f":"COUNTIFS(Tableau1[Date Arrivée],Statistique!$B21,Tableau1[Nat],Statistique!S$2)","v":0},{"$f":"COUNTIFS(Tableau1[Date Arrivée],Statistique!$B21,Tableau1[Nat],Statistique!T$2)","v":0},{"$f":"COUNTIFS(Tableau1[Date Arrivée],Statistique!$B21,Tableau1[Nat],Statistique!U$2)","v":0},{"$f":"COUNTIFS(Tableau1[Date Arrivée],Statistique!$B21,Tableau1[Nat],Statistique!V$2)","v":0},{"$f":"COUNTIFS(Tableau1[Date Arrivée],Statistique!$B21,Tableau1[Nat],Statistique!W$2)","v":0}]
[null,"2019-05-20",null,{"$f":"IFERROR(SUM(IF(Liste<>\"\",1/COUNTIF(Liste,Liste))),\"\")","v":""},{"$f":"COUNTIFS(Tableau1[Date Arrivée],Statistique!$B22,Tableau1[Nat],Statistique!E$2)","v":0},{"$f":"COUNTIFS(Tableau1[Date Arrivée],Statistique!$B22,Tableau1[Nat],Statistique!F$2)","v":0},{"$f":"COUNTIFS(Tableau1[Date Arrivée],Statistique!$B22,Tableau1[Nat],Statistique!G$2)","v":0},{"$f":"COUNTIFS(Tableau1[Date Arrivée],Statistique!$B22,Tableau1[Nat],Statistique!H$2)","v":0},{"$f":"COUNTIFS(Tableau1[Date Arrivée],Statistique!$B22,Tableau1[Nat],Statistique!I$2)","v":0},{"$f":"COUNTIFS(Tableau1[Date Arrivée],Statistique!$B22,Tableau1[Nat],Statistique!J$2)","v":0},{"$f":"COUNTIFS(Tableau1[Date Arrivée],Statistique!$B22,Tableau1[Nat],Statistique!K$2)","v":0},{"$f":"COUNTIFS(Tableau1[Date Arrivée],Statistique!$B22,Tableau1[Nat],Statistique!L$2)","v":0},{"$f":"COUNTIFS(Tableau1[Date Arrivée],Statistique!$B22,Tableau1[Nat],Statistique!M$2)","v":0},{"$f":"COUNTIFS(Tableau1[Date Arrivée],Statistique!$B22,Tableau1[Nat],Statistique!N$2)","v":0},{"$f":"COUNTIFS(Tableau1[Date Arrivée],Statistique!$B22,Tableau1[Nat],Statistique!O$2)","v":0},{"$f":"COUNTIFS(Tableau1[Date Arrivée],Statistique!$B22,Tableau1[Nat],Statistique!P$2)","v":0},{"$f":"COUNTIFS(Tableau1[Date Arrivée],Statistique!$B22,Tableau1[Nat],Statistique!Q$2)","v":0},{"$f":"COUNTIFS(Tableau1[Date Arrivée],Statistique!$B22,Tableau1[Nat],Statistique!R$2)","v":0},{"$f":"COUNTIFS(Tableau1[Date Arrivée],Statistique!$B22,Tableau1[Nat],Statistique!S$2)","v":0},{"$f":"COUNTIFS(Tableau1[Date Arrivée],Statistique!$B22,Tableau1[Nat],Statistique!T$2)","v":0},{"$f":"COUNTIFS(Tableau1[Date Arrivée],Statistique!$B22,Tableau1[Nat],Statistique!U$2)","v":0},{"$f":"COUNTIFS(Tableau1[Date Arrivée],Statistique!$B22,Tableau1[Nat],Statistique!V$2)","v":0},{"$f":"COUNTIFS(Tableau1[Date Arrivée],Statistique!$B22,Tableau1[Nat],Statistique!W$2)","v":0}]
[null,"2019-05-21",null,{"$f":"IFERROR(SUM(IF(Liste<>\"\",1/COUNTIF(Liste,Liste))),\"\")","v":""},{"$f":"COUNTIFS(Tableau1[Date Arrivée],Statistique!$B23,Tableau1[Nat],Statistique!E$2)","v":0},{"$f":"COUNTIFS(Tableau1[Date Arrivée],Statistique!$B23,Tableau1[Nat],Statistique!F$2)","v":0},{"$f":"COUNTIFS(Tableau1[Date Arrivée],Statistique!$B23,Tableau1[Nat],Statistique!G$2)","v":0},{"$f":"COUNTIFS(Tableau1[Date Arrivée],Statistique!$B23,Tableau1[Nat],Statistique!H$2)","v":0},{"$f":"COUNTIFS(Tableau1[Date Arrivée],Statistique!$B23,Tableau1[Nat],Statistique!I$2)","v":0},{"$f":"COUNTIFS(Tableau1[Date Arrivée],Statistique!$B23,Tableau1[Nat],Statistique!J$2)","v":0},{"$f":"COUNTIFS(Tableau1[Date Arrivée],Statistique!$B23,Tableau1[Nat],Statistique!K$2)","v":0},{"$f":"COUNTIFS(Tableau1[Date Arrivée],Statistique!$B23,Tableau1[Nat],Statistique!L$2)","v":0},{"$f":"COUNTIFS(Tableau1[Date Arrivée],Statistique!$B23,Tableau1[Nat],Statistique!M$2)","v":0},{"$f":"COUNTIFS(Tableau1[Date Arrivée],Statistique!$B23,Tableau1[Nat],Statistique!N$2)","v":0},{"$f":"COUNTIFS(Tableau1[Date Arrivée],Statistique!$B23,Tableau1[Nat],Statistique!O$2)","v":0},{"$f":"COUNTIFS(Tableau1[Date Arrivée],Statistique!$B23,Tableau1[Nat],Statistique!P$2)","v":0},{"$f":"COUNTIFS(Tableau1[Date Arrivée],Statistique!$B23,Tableau1[Nat],Statistique!Q$2)","v":0},{"$f":"COUNTIFS(Tableau1[Date Arrivée],Statistique!$B23,Tableau1[Nat],Statistique!R$2)","v":0},{"$f":"COUNTIFS(Tableau1[Date Arrivée],Statistique!$B23,Tableau1[Nat],Statistique!S$2)","v":0},{"$f":"COUNTIFS(Tableau1[Date Arrivée],Statistique!$B23,Tableau1[Nat],Statistique!T$2)","v":0},{"$f":"COUNTIFS(Tableau1[Date Arrivée],Statistique!$B23,Tableau1[Nat],Statistique!U$2)","v":0},{"$f":"COUNTIFS(Tableau1[Date Arrivée],Statistique!$B23,Tableau1[Nat],Statistique!V$2)","v":0},{"$f":"COUNTIFS(Tableau1[Date Arrivée],Statistique!$B23,Tableau1[Nat],Statistique!W$2)","v":0}]
[null,"2019-05-22",null,{"$f":"IFERROR(SUM(IF(Liste<>\"\",1/COUNTIF(Liste,Liste))),\"\")","v":""},{"$f":"COUNTIFS(Tableau1[Date Arrivée],Statistique!$B24,Tableau1[Nat],Statistique!E$2)","v":0},{"$f":"COUNTIFS(Tableau1[Date Arrivée],Statistique!$B24,Tableau1[Nat],Statistique!F$2)","v":0},{"$f":"COUNTIFS(Tableau1[Date Arrivée],Statistique!$B24,Tableau1[Nat],Statistique!G$2)","v":0},{"$f":"COUNTIFS(Tableau1[Date Arrivée],Statistique!$B24,Tableau1[Nat],Statistique!H$2)","v":0},{"$f":"COUNTIFS(Tableau1[Date Arrivée],Statistique!$B24,Tableau1[Nat],Statistique!I$2)","v":0},{"$f":"COUNTIFS(Tableau1[Date Arrivée],Statistique!$B24,Tableau1[Nat],Statistique!J$2)","v":0},{"$f":"COUNTIFS(Tableau1[Date Arrivée],Statistique!$B24,Tableau1[Nat],Statistique!K$2)","v":0},{"$f":"COUNTIFS(Tableau1[Date Arrivée],Statistique!$B24,Tableau1[Nat],Statistique!L$2)","v":0},{"$f":"COUNTIFS(Tableau1[Date Arrivée],Statistique!$B24,Tableau1[Nat],Statistique!M$2)","v":0},{"$f":"COUNTIFS(Tableau1[Date Arrivée],Statistique!$B24,Tableau1[Nat],Statistique!N$2)","v":0},{"$f":"COUNTIFS(Tableau1[Date Arrivée],Statistique!$B24,Tableau1[Nat],Statistique!O$2)","v":0},{"$f":"COUNTIFS(Tableau1[Date Arrivée],Statistique!$B24,Tableau1[Nat],Statistique!P$2)","v":0},{"$f":"COUNTIFS(Tableau1[Date Arrivée],Statistique!$B24,Tableau1[Nat],Statistique!Q$2)","v":0},{"$f":"COUNTIFS(Tableau1[Date Arrivée],Statistique!$B24,Tableau1[Nat],Statistique!R$2)","v":0},{"$f":"COUNTIFS(Tableau1[Date Arrivée],Statistique!$B24,Tableau1[Nat],Statistique!S$2)","v":0},{"$f":"COUNTIFS(Tableau1[Date Arrivée],Statistique!$B24,Tableau1[Nat],Statistique!T$2)","v":0},{"$f":"COUNTIFS(Tableau1[Date Arrivée],Statistique!$B24,Tableau1[Nat],Statistique!U$2)","v":0},{"$f":"COUNTIFS(Tableau1[Date Arrivée],Statistique!$B24,Tableau1[Nat],Statistique!V$2)","v":0},{"$f":"COUNTIFS(Tableau1[Date Arrivée],Statistique!$B24,Tableau1[Nat],Statistique!W$2)","v":0}]
[null,"2019-05-23",null,{"$f":"IFERROR(SUM(IF(Liste<>\"\",1/COUNTIF(Liste,Liste))),\"\")","v":""},{"$f":"COUNTIFS(Tableau1[Date Arrivée],Statistique!$B25,Tableau1[Nat],Statistique!E$2)","v":0},{"$f":"COUNTIFS(Tableau1[Date Arrivée],Statistique!$B25,Tableau1[Nat],Statistique!F$2)","v":0},{"$f":"COUNTIFS(Tableau1[Date Arrivée],Statistique!$B25,Tableau1[Nat],Statistique!G$2)","v":0},{"$f":"COUNTIFS(Tableau1[Date Arrivée],Statistique!$B25,Tableau1[Nat],Statistique!H$2)","v":0},{"$f":"COUNTIFS(Tableau1[Date Arrivée],Statistique!$B25,Tableau1[Nat],Statistique!I$2)","v":0},{"$f":"COUNTIFS(Tableau1[Date Arrivée],Statistique!$B25,Tableau1[Nat],Statistique!J$2)","v":0},{"$f":"COUNTIFS(Tableau1[Date Arrivée],Statistique!$B25,Tableau1[Nat],Statistique!K$2)","v":0},{"$f":"COUNTIFS(Tableau1[Date Arrivée],Statistique!$B25,Tableau1[Nat],Statistique!L$2)","v":0},{"$f":"COUNTIFS(Tableau1[Date Arrivée],Statistique!$B25,Tableau1[Nat],Statistique!M$2)","v":0},{"$f":"COUNTIFS(Tableau1[Date Arrivée],Statistique!$B25,Tableau1[Nat],Statistique!N$2)","v":0},{"$f":"COUNTIFS(Tableau1[Date Arrivée],Statistique!$B25,Tableau1[Nat],Statistique!O$2)","v":0},{"$f":"COUNTIFS(Tableau1[Date Arrivée],Statistique!$B25,Tableau1[Nat],Statistique!P$2)","v":0},{"$f":"COUNTIFS(Tableau1[Date Arrivée],Statistique!$B25,Tableau1[Nat],Statistique!Q$2)","v":0},{"$f":"COUNTIFS(Tableau1[Date Arrivée],Statistique!$B25,Tableau1[Nat],Statistique!R$2)","v":0},{"$f":"COUNTIFS(Tableau1[Date Arrivée],Statistique!$B25,Tableau1[Nat],Statistique!S$2)","v":0},{"$f":"COUNTIFS(Tableau1[Date Arrivée],Statistique!$B25,Tableau1[Nat],Statistique!T$2)","v":0},{"$f":"COUNTIFS(Tableau1[Date Arrivée],Statistique!$B25,Tableau1[Nat],Statistique!U$2)","v":0},{"$f":"COUNTIFS(Tableau1[Date Arrivée],Statistique!$B25,Tableau1[Nat],Statistique!V$2)","v":0},{"$f":"COUNTIFS(Tableau1[Date Arrivée],Statistique!$B25,Tableau1[Nat],Statistique!W$2)","v":0}]
[null,"2019-05-24",null,{"$f":"IFERROR(SUM(IF(Liste<>\"\",1/COUNTIF(Liste,Liste))),\"\")","v":""},{"$f":"COUNTIFS(Tableau1[Date Arrivée],Statistique!$B26,Tableau1[Nat],Statistique!E$2)","v":0},{"$f":"COUNTIFS(Tableau1[Date Arrivée],Statistique!$B26,Tableau1[Nat],Statistique!F$2)","v":0},{"$f":"COUNTIFS(Tableau1[Date Arrivée],Statistique!$B26,Tableau1[Nat],Statistique!G$2)","v":0},{"$f":"COUNTIFS(Tableau1[Date Arrivée],Statistique!$B26,Tableau1[Nat],Statistique!H$2)","v":0},{"$f":"COUNTIFS(Tableau1[Date Arrivée],Statistique!$B26,Tableau1[Nat],Statistique!I$2)","v":0},{"$f":"COUNTIFS(Tableau1[Date Arrivée],Statistique!$B26,Tableau1[Nat],Statistique!J$2)","v":0},{"$f":"COUNTIFS(Tableau1[Date Arrivée],Statistique!$B26,Tableau1[Nat],Statistique!K$2)","v":0},{"$f":"COUNTIFS(Tableau1[Date Arrivée],Statistique!$B26,Tableau1[Nat],Statistique!L$2)","v":0},{"$f":"COUNTIFS(Tableau1[Date Arrivée],Statistique!$B26,Tableau1[Nat],Statistique!M$2)","v":0},{"$f":"COUNTIFS(Tableau1[Date Arrivée],Statistique!$B26,Tableau1[Nat],Statistique!N$2)","v":0},{"$f":"COUNTIFS(Tableau1[Date Arrivée],Statistique!$B26,Tableau1[Nat],Statistique!O$2)","v":0},{"$f":"COUNTIFS(Tableau1[Date Arrivée],Statistique!$B26,Tableau1[Nat],Statistique!P$2)","v":0},{"$f":"COUNTIFS(Tableau1[Date Arrivée],Statistique!$B26,Tableau1[Nat],Statistique!Q$2)","v":0},{"$f":"COUNTIFS(Tableau1[Date Arrivée],Statistique!$B26,Tableau1[Nat],Statistique!R$2)","v":0},{"$f":"COUNTIFS(Tableau1[Date Arrivée],Statistique!$B26,Tableau1[Nat],Statistique!S$2)","v":0},{"$f":"COUNTIFS(Tableau1[Date Arrivée],Statistique!$B26,Tableau1[Nat],Statistique!T$2)","v":0},{"$f":"COUNTIFS(Tableau1[Date Arrivée],Statistique!$B26,Tableau1[Nat],Statistique!U$2)","v":0},{"$f":"COUNTIFS(Tableau1[Date Arrivée],Statistique!$B26,Tableau1[Nat],Statistique!V$2)","v":0},{"$f":"COUNTIFS(Tableau1[Date Arrivée],Statistique!$B26,Tableau1[Nat],Statistique!W$2)","v":0}]
[null,"2019-05-25",null,{"$f":"IFERROR(SUM(IF(Liste<>\"\",1/COUNTIF(Liste,Liste))),\"\")","v":""},{"$f":"COUNTIFS(Tableau1[Date Arrivée],Statistique!$B27,Tableau1[Nat],Statistique!E$2)","v":0},{"$f":"COUNTIFS(Tableau1[Date Arrivée],Statistique!$B27,Tableau1[Nat],Statistique!F$2)","v":0},{"$f":"COUNTIFS(Tableau1[Date Arrivée],Statistique!$B27,Tableau1[Nat],Statistique!G$2)","v":0},{"$f":"COUNTIFS(Tableau1[Date Arrivée],Statistique!$B27,Tableau1[Nat],Statistique!H$2)","v":0},{"$f":"COUNTIFS(Tableau1[Date Arrivée],Statistique!$B27,Tableau1[Nat],Statistique!I$2)","v":0},{"$f":"COUNTIFS(Tableau1[Date Arrivée],Statistique!$B27,Tableau1[Nat],Statistique!J$2)","v":0},{"$f":"COUNTIFS(Tableau1[Date Arrivée],Statistique!$B27,Tableau1[Nat],Statistique!K$2)","v":0},{"$f":"COUNTIFS(Tableau1[Date Arrivée],Statistique!$B27,Tableau1[Nat],Statistique!L$2)","v":0},{"$f":"COUNTIFS(Tableau1[Date Arrivée],Statistique!$B27,Tableau1[Nat],Statistique!M$2)","v":0},{"$f":"COUNTIFS(Tableau1[Date Arrivée],Statistique!$B27,Tableau1[Nat],Statistique!N$2)","v":0},{"$f":"COUNTIFS(Tableau1[Date Arrivée],Statistique!$B27,Tableau1[Nat],Statistique!O$2)","v":0},{"$f":"COUNTIFS(Tableau1[Date Arrivée],Statistique!$B27,Tableau1[Nat],Statistique!P$2)","v":0},{"$f":"COUNTIFS(Tableau1[Date Arrivée],Statistique!$B27,Tableau1[Nat],Statistique!Q$2)","v":0},{"$f":"COUNTIFS(Tableau1[Date Arrivée],Statistique!$B27,Tableau1[Nat],Statistique!R$2)","v":0},{"$f":"COUNTIFS(Tableau1[Date Arrivée],Statistique!$B27,Tableau1[Nat],Statistique!S$2)","v":0},{"$f":"COUNTIFS(Tableau1[Date Arrivée],Statistique!$B27,Tableau1[Nat],Statistique!T$2)","v":0},{"$f":"COUNTIFS(Tableau1[Date Arrivée],Statistique!$B27,Tableau1[Nat],Statistique!U$2)","v":0},{"$f":"COUNTIFS(Tableau1[Date Arrivée],Statistique!$B27,Tableau1[Nat],Statistique!V$2)","v":0},{"$f":"COUNTIFS(Tableau1[Date Arrivée],Statistique!$B27,Tableau1[Nat],Statistique!W$2)","v":0}]
[null,"2019-05-26",null,{"$f":"IFERROR(SUM(IF(Liste<>\"\",1/COUNTIF(Liste,Liste))),\"\")","v":""},{"$f":"COUNTIFS(Tableau1[Date Arrivée],Statistique!$B28,Tableau1[Nat],Statistique!E$2)","v":0},{"$f":"COUNTIFS(Tableau1[Date Arrivée],Statistique!$B28,Tableau1[Nat],Statistique!F$2)","v":0},{"$f":"COUNTIFS(Tableau1[Date Arrivée],Statistique!$B28,Tableau1[Nat],Statistique!G$2)","v":0},{"$f":"COUNTIFS(Tableau1[Date Arrivée],Statistique!$B28,Tableau1[Nat],Statistique!H$2)","v":0},{"$f":"COUNTIFS(Tableau1[Date Arrivée],Statistique!$B28,Tableau1[Nat],Statistique!I$2)","v":0},{"$f":"COUNTIFS(Tableau1[Date Arrivée],Statistique!$B28,Tableau1[Nat],Statistique!J$2)","v":0},{"$f":"COUNTIFS(Tableau1[Date Arrivée],Statistique!$B28,Tableau1[Nat],Statistique!K$2)","v":0},{"$f":"COUNTIFS(Tableau1[Date Arrivée],Statistique!$B28,Tableau1[Nat],Statistique!L$2)","v":0},{"$f":"COUNTIFS(Tableau1[Date Arrivée],Statistique!$B28,Tableau1[Nat],Statistique!M$2)","v":0},{"$f":"COUNTIFS(Tableau1[Date Arrivée],Statistique!$B28,Tableau1[Nat],Statistique!N$2)","v":0},{"$f":"COUNTIFS(Tableau1[Date Arrivée],Statistique!$B28,Tableau1[Nat],Statistique!O$2)","v":0},{"$f":"COUNTIFS(Tableau1[Date Arrivée],Statistique!$B28,Tableau1[Nat],Statistique!P$2)","v":0},{"$f":"COUNTIFS(Tableau1[Date Arrivée],Statistique!$B28,Tableau1[Nat],Statistique!Q$2)","v":0},{"$f":"COUNTIFS(Tableau1[Date Arrivée],Statistique!$B28,Tableau1[Nat],Statistique!R$2)","v":0},{"$f":"COUNTIFS(Tableau1[Date Arrivée],Statistique!$B28,Tableau1[Nat],Statistique!S$2)","v":0},{"$f":"COUNTIFS(Tableau1[Date Arrivée],Statistique!$B28,Tableau1[Nat],Statistique!T$2)","v":0},{"$f":"COUNTIFS(Tableau1[Date Arrivée],Statistique!$B28,Tableau1[Nat],Statistique!U$2)","v":0},{"$f":"COUNTIFS(Tableau1[Date Arrivée],Statistique!$B28,Tableau1[Nat],Statistique!V$2)","v":0},{"$f":"COUNTIFS(Tableau1[Date Arrivée],Statistique!$B28,Tableau1[Nat],Statistique!W$2)","v":0}]
[null,"2019-05-27",null,{"$f":"IFERROR(SUM(IF(Liste<>\"\",1/COUNTIF(Liste,Liste))),\"\")","v":""},{"$f":"COUNTIFS(Tableau1[Date Arrivée],Statistique!$B29,Tableau1[Nat],Statistique!E$2)","v":0},{"$f":"COUNTIFS(Tableau1[Date Arrivée],Statistique!$B29,Tableau1[Nat],Statistique!F$2)","v":0},{"$f":"COUNTIFS(Tableau1[Date Arrivée],Statistique!$B29,Tableau1[Nat],Statistique!G$2)","v":0},{"$f":"COUNTIFS(Tableau1[Date Arrivée],Statistique!$B29,Tableau1[Nat],Statistique!H$2)","v":0},{"$f":"COUNTIFS(Tableau1[Date Arrivée],Statistique!$B29,Tableau1[Nat],Statistique!I$2)","v":0},{"$f":"COUNTIFS(Tableau1[Date Arrivée],Statistique!$B29,Tableau1[Nat],Statistique!J$2)","v":0},{"$f":"COUNTIFS(Tableau1[Date Arrivée],Statistique!$B29,Tableau1[Nat],Statistique!K$2)","v":0},{"$f":"COUNTIFS(Tableau1[Date Arrivée],Statistique!$B29,Tableau1[Nat],Statistique!L$2)","v":0},{"$f":"COUNTIFS(Tableau1[Date Arrivée],Statistique!$B29,Tableau1[Nat],Statistique!M$2)","v":0},{"$f":"COUNTIFS(Tableau1[Date Arrivée],Statistique!$B29,Tableau1[Nat],Statistique!N$2)","v":0},{"$f":"COUNTIFS(Tableau1[Date Arrivée],Statistique!$B29,Tableau1[Nat],Statistique!O$2)","v":0},{"$f":"COUNTIFS(Tableau1[Date Arrivée],Statistique!$B29,Tableau1[Nat],Statistique!P$2)","v":0},{"$f":"COUNTIFS(Tableau1[Date Arrivée],Statistique!$B29,Tableau1[Nat],Statistique!Q$2)","v":0},{"$f":"COUNTIFS(Tableau1[Date Arrivée],Statistique!$B29,Tableau1[Nat],Statistique!R$2)","v":0},{"$f":"COUNTIFS(Tableau1[Date Arrivée],Statistique!$B29,Tableau1[Nat],Statistique!S$2)","v":0},{"$f":"COUNTIFS(Tableau1[Date Arrivée],Statistique!$B29,Tableau1[Nat],Statistique!T$2)","v":0},{"$f":"COUNTIFS(Tableau1[Date Arrivée],Statistique!$B29,Tableau1[Nat],Statistique!U$2)","v":0},{"$f":"COUNTIFS(Tableau1[Date Arrivée],Statistique!$B29,Tableau1[Nat],Statistique!V$2)","v":0},{"$f":"COUNTIFS(Tableau1[Date Arrivée],Statistique!$B29,Tableau1[Nat],Statistique!W$2)","v":0}]
[null,"2019-05-28",null,{"$f":"IFERROR(SUM(IF(Liste<>\"\",1/COUNTIF(Liste,Liste))),\"\")","v":""},{"$f":"COUNTIFS(Tableau1[Date Arrivée],Statistique!$B30,Tableau1[Nat],Statistique!E$2)","v":0},{"$f":"COUNTIFS(Tableau1[Date Arrivée],Statistique!$B30,Tableau1[Nat],Statistique!F$2)","v":0},{"$f":"COUNTIFS(Tableau1[Date Arrivée],Statistique!$B30,Tableau1[Nat],Statistique!G$2)","v":0},{"$f":"COUNTIFS(Tableau1[Date Arrivée],Statistique!$B30,Tableau1[Nat],Statistique!H$2)","v":0},{"$f":"COUNTIFS(Tableau1[Date Arrivée],Statistique!$B30,Tableau1[Nat],Statistique!I$2)","v":0},{"$f":"COUNTIFS(Tableau1[Date Arrivée],Statistique!$B30,Tableau1[Nat],Statistique!J$2)","v":0},{"$f":"COUNTIFS(Tableau1[Date Arrivée],Statistique!$B30,Tableau1[Nat],Statistique!K$2)","v":0},{"$f":"COUNTIFS(Tableau1[Date Arrivée],Statistique!$B30,Tableau1[Nat],Statistique!L$2)","v":0},{"$f":"COUNTIFS(Tableau1[Date Arrivée],Statistique!$B30,Tableau1[Nat],Statistique!M$2)","v":0},{"$f":"COUNTIFS(Tableau1[Date Arrivée],Statistique!$B30,Tableau1[Nat],Statistique!N$2)","v":0},{"$f":"COUNTIFS(Tableau1[Date Arrivée],Statistique!$B30,Tableau1[Nat],Statistique!O$2)","v":0},{"$f":"COUNTIFS(Tableau1[Date Arrivée],Statistique!$B30,Tableau1[Nat],Statistique!P$2)","v":0},{"$f":"COUNTIFS(Tableau1[Date Arrivée],Statistique!$B30,Tableau1[Nat],Statistique!Q$2)","v":0},{"$f":"COUNTIFS(Tableau1[Date Arrivée],Statistique!$B30,Tableau1[Nat],Statistique!R$2)","v":0},{"$f":"COUNTIFS(Tableau1[Date Arrivée],Statistique!$B30,Tableau1[Nat],Statistique!S$2)","v":0},{"$f":"COUNTIFS(Tableau1[Date Arrivée],Statistique!$B30,Tableau1[Nat],Statistique!T$2)","v":0},{"$f":"COUNTIFS(Tableau1[Date Arrivée],Statistique!$B30,Tableau1[Nat],Statistique!U$2)","v":0},{"$f":"COUNTIFS(Tableau1[Date Arrivée],Statistique!$B30,Tableau1[Nat],Statistique!V$2)","v":0},{"$f":"COUNTIFS(Tableau1[Date Arrivée],Statistique!$B30,Tableau1[Nat],Statistique!W$2)","v":0}]
[null,{"$f":"B30+1","v":"2019-05-29"},null,{"$f":"IFERROR(SUM(IF(Liste<>\"\",1/COUNTIF(Liste,Liste))),\"\")","v":""},{"$f":"COUNTIFS(Tableau1[Date Arrivée],Statistique!$B31,Tableau1[Nat],Statistique!E$2)","v":0},{"$f":"COUNTIFS(Tableau1[Date Arrivée],Statistique!$B31,Tableau1[Nat],Statistique!F$2)","v":0},{"$f":"COUNTIFS(Tableau1[Date Arrivée],Statistique!$B31,Tableau1[Nat],Statistique!G$2)","v":0},{"$f":"COUNTIFS(Tableau1[Date Arrivée],Statistique!$B31,Tableau1[Nat],Statistique!H$2)","v":0},{"$f":"COUNTIFS(Tableau1[Date Arrivée],Statistique!$B31,Tableau1[Nat],Statistique!I$2)","v":0},{"$f":"COUNTIFS(Tableau1[Date Arrivée],Statistique!$B31,Tableau1[Nat],Statistique!J$2)","v":0},{"$f":"COUNTIFS(Tableau1[Date Arrivée],Statistique!$B31,Tableau1[Nat],Statistique!K$2)","v":0},{"$f":"COUNTIFS(Tableau1[Date Arrivée],Statistique!$B31,Tableau1[Nat],Statistique!L$2)","v":0},{"$f":"COUNTIFS(Tableau1[Date Arrivée],Statistique!$B31,Tableau1[Nat],Statistique!M$2)","v":0},{"$f":"COUNTIFS(Tableau1[Date Arrivée],Statistique!$B31,Tableau1[Nat],Statistique!N$2)","v":0},{"$f":"COUNTIFS(Tableau1[Date Arrivée],Statistique!$B31,Tableau1[Nat],Statistique!O$2)","v":0},{"$f":"COUNTIFS(Tableau1[Date Arrivée],Statistique!$B31,Tableau1[Nat],Statistique!P$2)","v":0},{"$f":"COUNTIFS(Tableau1[Date Arrivée],Statistique!$B31,Tableau1[Nat],Statistique!Q$2)","v":0},{"$f":"COUNTIFS(Tableau1[Date Arrivée],Statistique!$B31,Tableau1[Nat],Statistique!R$2)","v":0},{"$f":"COUNTIFS(Tableau1[Date Arrivée],Statistique!$B31,Tableau1[Nat],Statistique!S$2)","v":0},{"$f":"COUNTIFS(Tableau1[Date Arrivée],Statistique!$B31,Tableau1[Nat],Statistique!T$2)","v":0},{"$f":"COUNTIFS(Tableau1[Date Arrivée],Statistique!$B31,Tableau1[Nat],Statistique!U$2)","v":0},{"$f":"COUNTIFS(Tableau1[Date Arrivée],Statistique!$B31,Tableau1[Nat],Statistique!V$2)","v":0},{"$f":"COUNTIFS(Tableau1[Date Arrivée],Statistique!$B31,Tableau1[Nat],Statistique!W$2)","v":0}]
[null,"2019-05-30",null,{"$f":"IFERROR(SUM(IF(Liste<>\"\",1/COUNTIF(Liste,Liste))),\"\")","v":""},{"$f":"COUNTIFS(Tableau1[Date Arrivée],Statistique!$B32,Tableau1[Nat],Statistique!E$2)","v":0},{"$f":"COUNTIFS(Tableau1[Date Arrivée],Statistique!$B32,Tableau1[Nat],Statistique!F$2)","v":0},{"$f":"COUNTIFS(Tableau1[Date Arrivée],Statistique!$B32,Tableau1[Nat],Statistique!G$2)","v":0},{"$f":"COUNTIFS(Tableau1[Date Arrivée],Statistique!$B32,Tableau1[Nat],Statistique!H$2)","v":0},{"$f":"COUNTIFS(Tableau1[Date Arrivée],Statistique!$B32,Tableau1[Nat],Statistique!I$2)","v":0},{"$f":"COUNTIFS(Tableau1[Date Arrivée],Statistique!$B32,Tableau1[Nat],Statistique!J$2)","v":0},{"$f":"COUNTIFS(Tableau1[Date Arrivée],Statistique!$B32,Tableau1[Nat],Statistique!K$2)","v":0},{"$f":"COUNTIFS(Tableau1[Date Arrivée],Statistique!$B32,Tableau1[Nat],Statistique!L$2)","v":0},{"$f":"COUNTIFS(Tableau1[Date Arrivée],Statistique!$B32,Tableau1[Nat],Statistique!M$2)","v":0},{"$f":"COUNTIFS(Tableau1[Date Arrivée],Statistique!$B32,Tableau1[Nat],Statistique!N$2)","v":0},{"$f":"COUNTIFS(Tableau1[Date Arrivée],Statistique!$B32,Tableau1[Nat],Statistique!O$2)","v":0},{"$f":"COUNTIFS(Tableau1[Date Arrivée],Statistique!$B32,Tableau1[Nat],Statistique!P$2)","v":0},{"$f":"COUNTIFS(Tableau1[Date Arrivée],Statistique!$B32,Tableau1[Nat],Statistique!Q$2)","v":0},{"$f":"COUNTIFS(Tableau1[Date Arrivée],Statistique!$B32,Tableau1[Nat],Statistique!R$2)","v":0},{"$f":"COUNTIFS(Tableau1[Date Arrivée],Statistique!$B32,Tableau1[Nat],Statistique!S$2)","v":0},{"$f":"COUNTIFS(Tableau1[Date Arrivée],Statistique!$B32,Tableau1[Nat],Statistique!T$2)","v":0},{"$f":"COUNTIFS(Tableau1[Date Arrivée],Statistique!$B32,Tableau1[Nat],Statistique!U$2)","v":0},{"$f":"COUNTIFS(Tableau1[Date Arrivée],Statistique!$B32,Tableau1[Nat],Statistique!V$2)","v":0},{"$f":"COUNTIFS(Tableau1[Date Arrivée],Statistique!$B32,Tableau1[Nat],Statistique!W$2)","v":0}]
[null,{"$f":"B32+1","v":"2019-05-31"},null,{"$f":"IFERROR(SUM(IF(Liste<>\"\",1/COUNTIF(Liste,Liste))),\"\")","v":""},{"$f":"COUNTIFS(Tableau1[Date Arrivée],Statistique!$B33,Tableau1[Nat],Statistique!E$2)","v":0},{"$f":"COUNTIFS(Tableau1[Date Arrivée],Statistique!$B33,Tableau1[Nat],Statistique!F$2)","v":0},{"$f":"COUNTIFS(Tableau1[Date Arrivée],Statistique!$B33,Tableau1[Nat],Statistique!G$2)","v":0},{"$f":"COUNTIFS(Tableau1[Date Arrivée],Statistique!$B33,Tableau1[Nat],Statistique!H$2)","v":0},{"$f":"COUNTIFS(Tableau1[Date Arrivée],Statistique!$B33,Tableau1[Nat],Statistique!I$2)","v":0},{"$f":"COUNTIFS(Tableau1[Date Arrivée],Statistique!$B33,Tableau1[Nat],Statistique!J$2)","v":0},{"$f":"COUNTIFS(Tableau1[Date Arrivée],Statistique!$B33,Tableau1[Nat],Statistique!K$2)","v":0},{"$f":"COUNTIFS(Tableau1[Date Arrivée],Statistique!$B33,Tableau1[Nat],Statistique!L$2)","v":0},{"$f":"COUNTIFS(Tableau1[Date Arrivée],Statistique!$B33,Tableau1[Nat],Statistique!M$2)","v":0},{"$f":"COUNTIFS(Tableau1[Date Arrivée],Statistique!$B33,Tableau1[Nat],Statistique!N$2)","v":0},{"$f":"COUNTIFS(Tableau1[Date Arrivée],Statistique!$B33,Tableau1[Nat],Statistique!O$2)","v":0},{"$f":"COUNTIFS(Tableau1[Date Arrivée],Statistique!$B33,Tableau1[Nat],Statistique!P$2)","v":0},{"$f":"COUNTIFS(Tableau1[Date Arrivée],Statistique!$B33,Tableau1[Nat],Statistique!Q$2)","v":0},{"$f":"COUNTIFS(Tableau1[Date Arrivée],Statistique!$B33,Tableau1[Nat],Statistique!R$2)","v":0},{"$f":"COUNTIFS(Tableau1[Date Arrivée],Statistique!$B33,Tableau1[Nat],Statistique!S$2)","v":0},{"$f":"COUNTIFS(Tableau1[Date Arrivée],Statistique!$B33,Tableau1[Nat],Statistique!T$2)","v":0},{"$f":"COUNTIFS(Tableau1[Date Arrivée],Statistique!$B33,Tableau1[Nat],Statistique!U$2)","v":0},{"$f":"COUNTIFS(Tableau1[Date Arrivée],Statistique!$B33,Tableau1[Nat],Statistique!V$2)","v":0},{"$f":"COUNTIFS(Tableau1[Date Arrivée],Statistique!$B33,Tableau1[Nat],Statistique!W$2)","v":0}]
[null,"Total"]